Cogmind - Beta 11 X8 @@@ ROGUE MODE // 2021.11.25 @ 21:23:47 Player: LU-1G1 Result: Destroyed by Cetus Guard with Improved KE Penetrator Performance ------------- Evolutions (5) 2500 Regions Visited (15) 3000 Robots Destroyed (76) 380 Value Destroyed (2967) 2967 Prototype IDs (30) 600 Alien Tech Used (0) 0 Bonus (2893) 2893 TOTAL SCORE: 12340 Bonus ------- High Alert Combat Kills 41 Follower Combat Kills 583 Entered Garrisons 600 Used RIF Installer 1500 Aligned with FarCom 300 Friendly Fire -131 Cogmind --------- Core Integrity 0/1000 Matter 207/300 Energy 15/100 System Corruption 27% Temperature Cool (9) Movement Core (700) Ox13 Location -5/Cetus Parts ------- > --- POWER (1) -------- (None) > --- PROPULSION (8) --- (None) > --- UTILITY (6) ------ High-capacity Storage Unit Inertial Stasis Machine Weapon Cycler Hacking Suite > --- WEAPON (2) ------- (None) > --- INVENTORY (20) --- Quantum Reactor Huge Storage Unit Structural Scanner Improved Trap Scanner Improved Sensor Array Relay Coupler [NC] (32) Relay Coupler [NC] (38) Relay Coupler [Sentry] (30) Improved Trap Extractor Trap Reconfigurator XL Autogun Array Long-range Missile Launcher Long-range Missile Launcher Improved Remote Datajack Powered Hammer Peak State ------------ > --- POWER ------------ Micro Fission Core > --- PROPULSION ------- Centrium Heavy Treads Cooled Cesium-ion Thruster Flying Fortress v7 > --- UTILITY ---------- High-capacity Storage Unit Advanced Melee Analysis Suite Advanced Melee Analysis Suite Hardened Light Armor Plating Improved Medium Armor Plating Hacking Suite > --- WEAPON ----------- Powered Hammer Katana > --- INVENTORY -------- Huge Storage Unit Structural Scanner Improved Trap Scanner Improved Sensor Array Weapon Cycler Advanced ECM Suite Relay Coupler [NC] Relay Coupler [NC] Relay Coupler [Sentry] Improved Trap Extractor Trap Reconfigurator XL Autogun Array Long-range Missile Launcher Long-range Missile Launcher Long-range Missile Launcher Improved Remote Datajack [Rating: 98] Favorites ----------- Power Ion Engine Engine Ion Engine Power Core Micro Nuclear Core Reactor Quantum Reactor Propulsion Light Treads Treads Light Treads Leg Aluminum Leg Hover Unit Improved Airjet Flight Unit Flying Fortress v7 Utility High-capacity Storage Unit Device Trap Reconfigurator Storage High-capacity Storage Unit Processor Advanced Melee Analysis Suite Hackware Hacking Suite Protection Improved Propulsion Shielding Weapon Grenade Launcher Ballistic Gun Assault Rifle Ballistic Cannon Light Cannon Launcher Grenade Launcher Special Weapon Plasma Cutter Impact Weapon Heavy Flail Slashing Weapon Katana Special Melee Weapon Datajack Build | -11 -10 -10 -10 -9 -8 -8 -8 -7 -7 -7 -7 -6 -5 -5 -5 ------- Run | Scr Mat Min Exi Min Mat Gar Mat Fac Gar Fac Gar Fac Fac Ext Cet Slots Evolved 10 | . . . . . 4 . . 2 . . . 2 2 . . Power . | . . . . . . . . . . . . . . . . Propulsion 6 | . . . . . 2 . . 2 . . . . 2 . . Utility 4 | . . . . . 2 . . . . . . 2 . . . Weapon . | . . . . . . . . . . . . . . . . Parts Attached 101 | 7 8 . . 1 3 9 6 7 10 7 10 7 4 4 18 Power 8 | 1 2 . . . . 1 . . 1 . . 1 1 . 1 Engine 3 | 1 2 . . . . . . . . . . . . . . Core 4 | . . . . . . 1 . . 1 . . 1 1 . . Reactor 1 | . . . . . . . . . . . . . . . 1 Propulsion 16 | 2 1 . . . 1 3 . 3 1 . 1 1 . . 3 Treads 7 | 2 1 . . . 1 . . . . . . . . . 3 Leg 1 | . . . . . . 1 . . . . . . . . . Wheel . | . . . . . . . . . . . . . . . . Hover 1 | . . . . . . . . 1 . . . . . . . Flight 7 | . . . . . . 2 . 2 1 . 1 1 . . . Utility 44 | 2 2 . . 1 2 1 2 . 7 4 9 4 2 2 6 Device 24 | 1 . . . 1 2 . 1 . 4 2 7 . . 1 5 Storage 3 | 1 1 . . . . . . . . . . 1 . . . Processor 2 | . . . . . . . . . . . . 1 1 . . Hackware 1 | . . . . . . . 1 . . . . . . . . Protection 14 | . 1 . . . . 1 . . 3 2 2 2 1 1 1 Artifact . | . . . . . . . . . . . . . . . . Weapon 33 | 2 3 . . . . 4 4 4 1 3 . 1 1 2 8 Energy Gun . | . . . . . . . . . . . . . . . . Energy Cannon . | . . . . . . . . . . . . . . . . Ballistic Gun 12 | 2 . . . . . 2 1 1 . . . . 1 . 5 Ballistic Cannon 1 | . 1 . . . . . . . . . . . . . . Launcher 6 | . 2 . . . . . . . 1 . . . . 1 2 Special Weapon 4 | . . . . . . 1 2 . . . . . . 1 . Impact Weapon 6 | . . . . . . . 1 1 . 3 . . . . 1 Slashing Weapon 2 | . . . . . . 1 . . . . . 1 . . . Piercing Weapon . | . . . . . . . . . . . . . . . . Special Melee Weapon 2 | . . . . . . . . 2 . . . . . . . Unidentified Prototypes 7 | . . . . . . . . 2 . . . 1 . . 4 Corrupted Parts 5 | . . . . . . . . . . . . . . . 5 System Corruption 17 | . . . . . . . . . . . . . . . 17 Parts Lost 42 | . 4 . . . . 8 . . 6 . 3 2 . . 19 Power 5 | . 1 . . . . 1 . . 1 . . . . . 2 Propulsion 12 | . . . . . . 4 . . 1 . 1 1 . . 5 Utility 12 | . 1 . . . . . . . 2 . 2 1 . . 6 Weapon 13 | . 2 . . . . 3 . . 2 . . . . . 6 Highest Loss Streak 10 | . 2 . . . . 8 . . 6 . 2 1 . . 10 Average Slot Usage (%) 80 | . 86 100 100 100 87 83 61 70 74 72 72 65 60 64 49 Engine 6 | . 8 14 14 14 9 6 . . . . . . . . . Core 2 | . . . . . . 2 9 7 6 7 7 5 1 5 . Treads 14 | . 28 28 28 28 26 19 . . . . . . . . 3 Flight 7 | . . . . . . 5 9 18 23 23 23 17 17 17 2 Device 9 | . 8 . . 7 25 25 11 7 7 5 4 5 . 3 7 Storage 9 | . 14 14 14 14 9 9 9 7 7 7 7 6 5 5 5 Processor 1 | . . . . . . . . . . . . 1 9 11 5 Hackware 2 | . . . . . . . 6 7 7 7 7 6 5 5 5 Protection 6 | . 1 14 14 6 . 1 9 7 7 8 7 7 8 6 4 Ballistic Gun 2 | . 19 . . . . . . . . . . . . . 7 Launcher 10 | . . 28 28 28 18 12 . . . . . . . . . Impact Weapon 2 | . . . . . . . 2 4 6 11 15 9 3 . . Naked Turns . | . . . . . . . . . . . . . . . . Heaviest Build 83 | 13 52 52 52 52 54 54 54 53 54 59 59 61 65 63 83 Greatest Support 96 | 40 40 40 40 40 60 60 50 61 61 61 61 64 61 61 96 Greatest Overweight (x) 26 | . 1 1 1 1 1 15 1 . . . . 1 1 1 26 Average Overweight (x) . | . . 1 1 1 . . . . . . . . . . 1 Largest Inventory Capacity 20 | 8 20 20 20 20 20 20 20 20 20 20 20 20 20 20 20 Average Capacity 19 | 6 14 20 20 20 20 20 20 20 20 20 20 20 20 20 20 Most Carried 20 | 6 11 10 19 20 20 20 20 20 20 20 20 20 20 20 20 Average Carried 16 | 2 8 9 13 19 18 19 19 19 19 17 19 19 19 19 19 Final Capacity 20 | 8 20 20 20 20 20 20 20 20 20 20 20 20 20 20 20 Final Carried 20 | 6 9 10 19 20 20 20 20 20 16 20 20 20 20 20 18 Class Distribution -------------------- 88% | Mutant 3% | Trapper-Mutant 3% | Scavenger-Mutant Dominant Class ---------------- Mutant | -10/Materials Mutant | -10/Mines Mutant | -10/Exiles Mutant | -9/Mines Mutant | -8/Materials Mutant | -8/Garrison Mutant | -8/Materials Mutant | -7/Factory Mutant | -7/Garrison Mutant | -7/Factory Mutant | -7/Garrison Mutant | -6/Factory Mutant | -5/Factory Mutant | -5/Extension Scavenger-Mutant | -5/Cetus Resources | -11 -10 -10 -10 -9 -8 -8 -8 -7 -7 -7 -7 -6 -5 -5 -5 ----------- Run | Scr Mat Min Exi Min Mat Gar Mat Fac Gar Fac Gar Fac Fac Ext Cet Matter Collected 2543 | 324 399 67 . 90 69 339 252 70 4 166 135 10 . 220 398 Remotely . | . . . . . . . . . . . . . . . . Salvage Created 2462 | 86 645 81 . . 125 124 18 . 124 178 25 236 . 148 672 Parts 127 | 4 34 7 . . 10 12 1 . 10 7 1 6 . 2 33 Haulers Intercepted 5 | . 2 . . . 1 . . . . 1 . 1 . . . Recyclers Shooed 1 | . . . . . . . . . . . . 1 . . . Parts Field Recycled . | . . . . . . . . . . . . . . . . Retrieved Matter . | . . . . . . . . . . . . . . . . Parts Self-Destructed . | . . . . . . . . . . . . . . . . Prevented . | . . . . . . . . . . . . . . . . Kills | -11 -10 -10 -10 -9 -8 -8 -8 -7 -7 -7 -7 -6 -5 -5 -5 ------- Run | Scr Mat Min Exi Min Mat Gar Mat Fac Gar Fac Gar Fac Fac Ext Cet Combat Hostiles Destroyed 52 | . 10 4 . . 2 10 . . 8 . 1 2 . . 15 Melee 3 | . . . . . . 1 . . . . 1 1 . . . Guns 13 | . 6 . . . . 1 . . . . . . . . 6 Cannons 1 | . 1 . . . . . . . . . . . . . . AOE 34 | . 3 4 . . 2 8 . . 8 . . . . . 9 Classes Destroyed 13 | 2 4 . . . 1 1 1 . . . . . . . 4 Worker 2 | . 1 1 . . . . . . . . . . . . . Builder 4 | . 1 1 . . 1 . . . . . . . . 1 . Tunneler 3 | 1 1 . . . . . . . . 1 . . . . . Hauler 5 | . 2 . . . 1 . . . . 1 . 1 . . . Recycler 4 | 1 1 . . . . . . . . 1 . . . 1 . Mechanic 2 | . . . . . 1 . . . . 1 . . . . . Operator 1 | . . . . . . . 1 . . . . . . . . Watcher 2 | . . . . . . . . . . . . . . . 2 Swarmer 19 | . . . . . . 7 . . 7 . 1 . . . 4 Grunt 27 | . 10 4 . . 2 3 . . 1 . . 2 . . 5 Hunter 2 | . . . . . . . . . . . . . . . 2 Programmer 2 | . . . . . . . . . . . . . . . 2 Cetus Guard 2 | . . . . . . . . . . . . . . . 2 Thug 1 | . . . . . 1 . . . . . . . . . . Best Kill Streak 6 | 1 5 3 . . 5 5 1 . 5 3 1 1 . 1 6 Combat Bots Only 6 | . 4 2 . . 2 5 . . 5 . 1 1 . . 6 Max Kills in Single Turn 4 | 1 4 2 . . 1 2 1 . 2 1 1 1 . 1 3 Gunslinging . | . . . . . . . . . . . . . . . . Exploded 3 | . 3 2 . . 1 2 . . 2 . . . . . 3 Melee 1 | . . . . . . 1 . . . . 1 1 . . . Uniques/NPCs Destroyed . | . . . . . . . . . . . . . . . . Combat | -11 -10 -10 -10 -9 -8 -8 -8 -7 -7 -7 -7 -6 -5 -5 -5 -------- Run | Scr Mat Min Exi Min Mat Gar Mat Fac Gar Fac Gar Fac Fac Ext Cet Damage Taken 8399 | . 608 102 . 44 15 766 77 35 717 80 835 423 47 75 4575 Core 1762 | . 45 4 . 22 . 221 . 19 174 28 183 56 23 23 964 Absorbed by Shields 230 | . . . . . . . . . 111 . 30 . . 50 39 Reduced by Siege Mode 68 | . . . . . . . . . . . . . . . 68 Core Remaining (%) 73 | 100 . . . 71 . . 59 . . . 42 93 . . . Volleys Fired 200 | 9 66 6 . . 8 39 5 . 6 . . . . 6 55 Largest 2 | 2 2 2 . . 2 2 1 . 1 . . . . 1 2 Hottest 70 | 40 55 60 . . 60 60 33 . 30 . . . . 43 70 Shots Fired 303 | 18 120 12 . . 16 41 5 . 6 . . . . 6 79 Gun 206 | 18 104 . . . . 6 4 . . . . . . . 74 Cannon 16 | . 16 . . . . . . . . . . . . . . Launcher 61 | . . 12 . . 16 16 . . 6 . . . . 6 5 Special 20 | . . . . . . 19 1 . . . . . . . . Kinetic 222 | 18 120 . . . . 6 4 . . . . . . . 74 Thermal 20 | . . . . . . 19 1 . . . . . . . . Explosive 61 | . . 12 . . 16 16 . . 6 . . . . 6 5 Electromagnetic . | . . . . . . . . . . . . . . . . Robot Hit Streak 26 | 4 26 8 . . 3 3 3 . 3 . . . . . 7 Robot Miss Streak 5 | 2 4 2 . . 1 1 2 . 1 . . . . . 5 Penetration Max 1 | . . . . . . . . . . . . . . . 1 Secondary Targets . | . . . . . . . . . . . . . . . . Shots Hit Robots 208 | 11 74 8 . . 2 12 5 . 4 4 3 17 . 8 60 Core Hits 137 | 3 28 10 . . 14 17 1 . 16 2 1 4 . 3 38 Critical Kills 5 | 1 1 . . . . . . . . . . . . . 3 Critical Parts Destroyed 6 | . 1 . . . . . . . . . . . . . 5 Critical Strikes 12 | 1 2 . . . . . . . . . . . . . 9 Destroy 11 | 1 2 . . . . . . . . . . . . . 8 Sever 1 | . . . . . . . . . . . . . . . 1 Melee Attacks 72 | . . . . . . 8 4 1 1 4 9 25 . 9 11 Impact 49 | . . . . . . . 4 1 1 4 9 25 . . 5 Slashing 23 | . . . . . . 8 . . . . . . . 9 6 Piercing . | . . . . . . . . . . . . . . . . Sneak Attacks 9 | . . . . . . . 2 . . 4 . 2 . 1 . Combat Hostiles . | . . . . . . . . . . . . . . . . Follow-up Attacks 9 | . . . . . . . . . . . 3 4 . . 2 Damage Inflicted 8071 | 148 1262 446 . . 533 722 161 . 633 276 99 604 . 496 2691 Guns 2492 | 148 843 . . . . 72 39 . . . . . . . 1390 Cannons 157 | . 157 . . . . . . . . . . . . . . Explosions 3478 | . 251 445 . . 533 549 . . 633 . . . . 100 967 Melee 1917 | . . . . . . 97 111 . . 276 99 604 . 396 334 Ramming 16 | . 11 1 . . . 4 . . . . . . . . . Kinetic 2649 | 148 1000 . . . . 72 39 . . . . . . . 1390 Thermal 11 | . . . . . . . 11 . . . . . . . . Explosive 3227 | . . 445 . . 533 549 . . 633 . . . . 100 967 Electromagnetic 251 | . 251 . . . . . . . . . . . . . . Impact 1213 | . . . . . . . 111 . . 276 99 604 . . 123 Slashing 704 | . . . . . . 97 . . . . . . . 396 211 Piercing . | . . . . . . . . . . . . . . . . Highest Corruption 27 | . 1 1 1 1 . . . 1 1 1 1 . . 1 27 Average Corruption 2 | . 1 1 1 1 . . . 1 1 1 1 . . 1 15 Corruption Purged . | . . . . . . . . . . . . . . . . Effects 37 | . . 4 3 2 . . . . 3 1 . . . . 24 Message Errors 16 | . . 3 2 1 . . . . 3 1 . . . . 6 Matter Fused 4 | . . . . . . . . . . . . . . . 4 Heat Flow Errors 3 | . . . . . . . . . . . . . . . 3 Energy Discharges 7 | . . 1 1 1 . . . . . . . . . . 4 Parts Rejected 1 | . . . . . . . . . . . . . . . 1 Data Loss (minor) 3 | . . . . . . . . . . . . . . . 3 Weapon Failures 3 | . . . . . . . . . . . . . . . 3 Overload Shots . | . . . . . . . . . . . . . . . . Overflow Damage 366 | . . . . . . . . . 12 134 15 22 . 136 47 Projectiles . | . . . . . . . . . . . . . . . . Explosions 66 | . . . . . . . . . 12 . . . . 13 41 Melee 300 | . . . . . . . . . . 134 15 22 . 123 6 Knockbacks 4 | . 1 . . . . . . . . 2 . 1 . . . Impact 3 | . . . . . . . . . . 2 . 1 . . . Kinetic 1 | . 1 . . . . . . . . . . . . . . Secondary . | . . . . . . . . . . . . . . . . Self-Inflicted Damage 191 | . 11 48 . . . 42 . . 31 . . . . . 59 Shots 11 | . 1 4 . . . 3 . . 1 . . . . . 2 Rammed 7 | . 2 1 . . . 3 . . . . . 1 . . . Targets Rammed 8 | . 2 2 . . . 3 . . . . . 1 . . . Kicked . | . . . . . . . . . . . . . . . . Crushed 1 | . . 1 . . . . . . . . . . . . . Highest Temperature 321 | . 8 24 . . 3 16 . . 19 . 21 2 . 1 321 Average Temperature 102 | . 2 16 . . 3 10 . . 5 . 11 2 . 1 145 Received Heat Transfer 2033 | . 327 33 . . 9 414 18 . 186 27 81 129 9 17 783 Effects 2 | . . . . . . . . . . . . . . . 2 Energy Bleed 2 | . . . . . . . . . . . . . . . 2 Siege Activations 1 | . . . . . . . . . . . . . . . 1 Total Turns 37 | . . . . . . . . . . . . . . . 37 Longest Duration 37 | . . . . . . . . . . . . . . . 37 Robots Corrupted . | . . . . . . . . . . . . . . . . Combat Hostiles . | . . . . . . . . . . . . . . . . Parts Fried 7 | . . . . . . . . . . 3 . 4 . . . Impact Corruptions 9 | . . . . . . . . . . 5 1 2 . . 1 Robots Melted . | . . . . . . . . . . . . . . . . Combat Hostiles . | . . . . . . . . . . . . . . . . Parts Melted . | . . . . . . . . . . . . . . . . Heat Transferred 37 | . . . . . . . 37 . . . . . . . . Parts Sabotaged . | . . . . . . . . . . . . . . . . Parts Stolen . | . . . . . . . . . . . . . . . . Parts Stripped . | . . . . . . . . . . . . . . . . Power Chain Reactions . | . . . . . . . . . . . . . . . . Missiles Intercepted . | . . . . . . . . . . . . . . . . Alert | -11 -10 -10 -10 -9 -8 -8 -8 -7 -7 -7 -7 -6 -5 -5 -5 ------- Run | Scr Mat Min Exi Min Mat Gar Mat Fac Gar Fac Gar Fac Fac Ext Cet Peak Influence 664 | 10 327 209 . . 138 664 368 112 443 374 446 402 188 455 393 Initial 323 | . 6 69 . . . 89 323 13 78 232 261 233 102 91 25 Average 188 | 7 127 63 . . 61 350 270 46 113 288 335 306 139 272 173 Maximum Alert Level 2 | . 1 1 . . . 2 1 . 2 1 2 2 . 2 1 Low Security (%) 60 | 100 79 96 . 100 100 30 36 100 88 . . . 100 38 84 Level 1 27 | . 20 3 . . . 20 63 . 9 100 74 89 . 40 15 Level 2 11 | . . . . . . 49 . . 1 . 25 10 . 20 . Level 3 . | . . . . . . . . . . . . . . . . Level 4 . | . . . . . . . . . . . . . . . . Level 5 . | . . . . . . . . . . . . . . . . High Security . | . . . . . . . . . . . . . . . . Max Security . | . . . . . . . . . . . . . . . . Squads Dispatched 17 | . 2 . . . 1 . 2 2 . 1 . 7 1 1 . Investigation 9 | . 1 . . . . . . 1 . 1 . 6 . . . Extermination . | . . . . . . . . . . . . . . . . Reinforcement 6 | . 1 . . . . . 2 1 . . . 1 1 . . Assault 1 | . . . . . . . . . . . . . . 1 . Garrison 1 | . . . . . 1 . . . . . . . . . . Intercept . | . . . . . . . . . . . . . . . . Construction Impeded . | . . . . . . . . . . . . . . . . Haulers Reinforced . | . . . . . . . . . . . . . . . . Active Scanning Responses . | . . . . . . . . . . . . . . . . Cargo Convoy Interrupts . | . . . . . . . . . . . . . . . . Stealth | -11 -10 -10 -10 -9 -8 -8 -8 -7 -7 -7 -7 -6 -5 -5 -5 --------- Run | Scr Mat Min Exi Min Mat Gar Mat Fac Gar Fac Gar Fac Fac Ext Cet Distress Signals 6 | . 4 . . . . . . . . . . . . . 2 Communications Jammed . | . . . . . . . . . . . . . . . . Distress Signals . | . . . . . . . . . . . . . . . . Times Spotted 151 | . 27 4 . . 3 8 12 8 15 7 20 9 3 12 23 Peak Tracking Total 15 | . 8 2 . . 1 4 5 6 15 3 13 4 1 5 9 Tactical Retreats 17 | . 1 . . . . 1 1 . 3 2 5 2 . 2 . Traps | -11 -10 -10 -10 -9 -8 -8 -8 -7 -7 -7 -7 -6 -5 -5 -5 ------- Run | Scr Mat Min Exi Min Mat Gar Mat Fac Gar Fac Gar Fac Fac Ext Cet Traps Triggered 19 | . . . . 1 . 2 . 1 3 1 8 1 . 2 . Indirectly . | . . . . . . . . . . . . . . . . Trap Hack Attempts . | . . . . . . . . . . . . . . . . Triggered . | . . . . . . . . . . . . . . . . Disarmed . | . . . . . . . . . . . . . . . . Reprogrammed . | . . . . . . . . . . . . . . . . Reused 5 | . . . . . . 3 . . 1 1 . . . . . Traps Reconfigurated 46 | . . . . 2 . 13 . . 3 4 7 2 . 15 . Traps Extracted 11 | . . . . . . . . . . 4 7 . . . . Installed 4 | . . . . . . . . . . 2 2 . . . . Triggered 7 | . . . . . . 3 . . 1 2 1 . . . . Machines | -11 -10 -10 -10 -9 -8 -8 -8 -7 -7 -7 -7 -6 -5 -5 -5 ---------- Run | Scr Mat Min Exi Min Mat Gar Mat Fac Gar Fac Gar Fac Fac Ext Cet Machines Disabled 11 | . 1 1 . . 1 2 . . 1 1 . . . . 4 Max in Single Turn 2 | . 1 1 . . 1 1 . . 1 1 . . . . 2 Garrison Relay 3 | . . . . . . 2 . . 1 . . . . . . Machines Sabotaged . | . . . . . . . . . . . . . . . . Garrisons Compromised . | . . . . . . . . . . . . . . . . Overloaded Fab Kills . | . . . . . . . . . . . . . . . . Hacking | -11 -10 -10 -10 -9 -8 -8 -8 -7 -7 -7 -7 -6 -5 -5 -5 --------- Run | Scr Mat Min Exi Min Mat Gar Mat Fac Gar Fac Gar Fac Fac Ext Cet Machines Accessed 46 | . 6 . 2 1 1 . 6 6 . 2 . 6 6 10 . Terminals 31 | . 6 . . . . . 5 3 . . . 2 5 10 . Fabricators 6 | . . . . . . . . 2 . 1 . 3 . . . Repair Stations 1 | . . . . . . . . . . . . 1 . . . Recycling Units 1 | . . . . . . . . . . . . . 1 . . Scanalyzers 1 | . . . . . . . 1 . . . . . . . . Garrison Access 3 | . . . . . 1 . . 1 . 1 . . . . . Total Hacks 120 | . 17 . 2 1 1 . 30 14 . 3 . 15 18 19 . Successful 75 | . 9 . 2 1 1 . 21 7 . 3 . 5 15 11 . Failed 45 | . 8 . . . . . 9 7 . . . 10 3 8 . Catastrophic 13 | . 2 . . . . . 2 4 . . . 5 . . . Database Lockouts . | . . . . . . . . . . . . . . . . Manual 40 | . 5 . 1 . . . 9 3 . . . 6 9 7 . Terminals 75 | . 17 . . . . . 14 8 . . . 4 13 19 . Fabricators 15 | . . . . . . . . 5 . 2 . 8 . . . Repair Stations 3 | . . . . . . . . . . . . 3 . . . Recycling Units 5 | . . . . . . . . . . . . . 5 . . Scanalyzers 16 | . . . . . . . 16 . . . . . . . . Garrison Access 3 | . . . . . 1 . . 1 . 1 . . . . . Terminal Hacks 41 | . 9 . 2 1 . . 5 4 . . . 1 9 10 . Record 1 | . . . 1 . . . . . . . . . . . . Part Schematic 1 | . . . . . . . . . . . . . 1 . . Robot Schematic 3 | . 2 . . . . . . . . . . . 1 . . Robot Analysis 1 | . . . . . . . . . . . . . 1 . . Open Door 8 | . . . . 1 . . . . . . . . 1 6 . Open DSF 1 | . . . . . . . . . . . . 1 . . . Level Access Points 1 | . . . . . . . 1 . . . . . . . . Branch Access Points 3 | . 1 . . . . . 1 . . . . . 1 . . Machine Index 1 | . . . . . . . . 1 . . . . . . . Terminal Index 1 | . . . . . . . . . . . . . 1 . . Alert Level 1 | . 1 . . . . . . . . . . . . . . Unreport Threat 4 | . . . . . . . 2 . . . . . . 2 . Locate Traps 2 | . 1 . . . . . . . . . . . . 1 . Dispatch Records 1 | . . . . . . . . . . . . . 1 . . Transport Status 1 | . . . . . . . . 1 . . . . . . . Hauler Manifests 3 | . 1 . . . . . . 1 . . . . 1 . . Registered Components 1 | . 1 . . . . . . . . . . . . . . Zone Layout 6 | . 2 . . . . . 1 1 . . . . 1 1 . EX-Prototype ID Bank 1 | . . . 1 . . . . . . . . . . . . Fabricator Hacks 6 | . . . . . . . . 2 . 2 . 2 . . . Network Status 2 | . . . . . . . . 2 . . . . . . . Load Schematic 2 | . . . . . . . . . . 1 . 1 . . . Build 2 | . . . . . . . . . . 1 . 1 . . . Repair Station Hacks 2 | . . . . . . . . . . . . 2 . . . Scan Component 1 | . . . . . . . . . . . . 1 . . . Repair 1 | . . . . . . . . . . . . 1 . . . Recycling Unit Hacks 1 | . . . . . . . . . . . . . 1 . . Retrieve Components 1 | . . . . . . . . . . . . . 1 . . Scanalyzer 16 | . . . . . . . 16 . . . . . . . . Insert Component 8 | . . . . . . . 8 . . . . . . . . Analyze 8 | . . . . . . . 8 . . . . . . . . Garrison Access Hacks 3 | . . . . . 1 . . 1 . 1 . . . . . Unlock Access 3 | . . . . . 1 . . 1 . 1 . . . . . Unauthorized Hacks 6 | . . . . . . . . . . . . . 5 1 . Terminals 2 | . . . . . . . . . . . . . 1 1 . Assimilate 1 | . . . . . . . . . . . . . 1 . . Botnet 1 | . . . . . . . . . . . . . . 1 . Fabricators . | . . . . . . . . . . . . . . . . Repair Stations . | . . . . . . . . . . . . . . . . Recycling Units 4 | . . . . . . . . . . . . . 4 . . Monitor 1 | . . . . . . . . . . . . . 1 . . Reject 1 | . . . . . . . . . . . . . 1 . . Recyclers 1 | . . . . . . . . . . . . . 1 . . Mask 1 | . . . . . . . . . . . . . 1 . . Scanalyzers . | . . . . . . . . . . . . . . . . Garrison Access . | . . . . . . . . . . . . . . . . Data Cores Recovered . | . . . . . . . . . . . . . . . . Used . | . . . . . . . . . . . . . . . . Hacking Detections 34 | . 6 . . . . . 6 5 . 2 . 6 4 5 . Full Trace Events 9 | . 2 . . . . . . 1 . 1 . 5 . . . Feedback Events . | . . . . . . . . . . . . . . . . Feedback Blocked . | . . . . . . . . . . . . . . . . Robot Schematics Acquired 3 | . 2 . . . . . . . . . . . 1 . . Robots Built 1 | . . . . . . . . . . . . 1 . . . Authchips . | . . . . . . . . . . . . . . . . Time 81 | . . . . . . . . . . . . 81 . . . Total Robot Build Rating 1 | . . . . . . . . . . . . 1 . . . Part Schematics Acquired 9 | . . . . . . . 8 . . . . . 1 . . Parts Built 2 | . . . . . . . . . . 2 . . . . . Authchips . | . . . . . . . . . . . . . . . . Time 73 | . . . . . . . . . . 73 . . . . . Total Part Build Rating 6 | . . . . . . . . . . 6 . . . . . Parts Repaired 1 | . . . . . . . . . . . . 1 . . . Time 22 | . . . . . . . . . . . . 22 . . . Parts Recycled . | . . . . . . . . . . . . . . . . Recycled Matter . | . . . . . . . . . . . . . . . . Retrieved Matter . | . . . . . . . . . . . . . . . . Retrieved Components . | . . . . . . . . . . . . . . . . Parts Scanalyzed 8 | . . . . . . . 8 . . . . . . . . Part Schematics Acquired 8 | . . . . . . . 8 . . . . . . . . Parts Damaged 1 | . . . . . . . 1 . . . . . . . . Bothacking | -11 -10 -10 -10 -9 -8 -8 -8 -7 -7 -7 -7 -6 -5 -5 -5 ------------ Run | Scr Mat Min Exi Min Mat Gar Mat Fac Gar Fac Gar Fac Fac Ext Cet Used RIF Installer 3 | . . . . . . 1 . . 1 . 1 . . . . Coupler Efficiency 1 | . . . . . . . . . 1 . . . . . . Program Shield 1 | . . . . . . . . . . . 1 . . . . Robots Hacked . | . . . . . . . . . . . . . . . . Non-combat . | . . . . . . . . . . . . . . . . Combat . | . . . . . . . . . . . . . . . . Robot Hacks Applied . | . . . . . . . . . . . . . . . . Relay Couplers Released 12 | . . . . . . 8 . . 4 . . . . . . Machine Destruction 12 | . . . . . . 8 . . 4 . . . . . . Fabnet Peak Effective % . | . . . . . . . . . . . . . . . . Robots Rewired 4 | . . . . . . . . . . . . . . 4 . Allies Hacked . | . . . . . . . . . . . . . . . . Hacks Repelled . | . . . . . . . . . . . . . . . . Allies | -11 -10 -10 -10 -9 -8 -8 -8 -7 -7 -7 -7 -6 -5 -5 -5 -------- Run | Scr Mat Min Exi Min Mat Gar Mat Fac Gar Fac Gar Fac Fac Ext Cet Total Allies 11 | . . . . . . . . . . . . 1 1 9 . Largest Group 7 | . . . . . . . . . . . . 1 1 7 1 Highest-Rated Group 363 | . . . . . . . . . . . . 14 26 363 159 Highest-Rated Ally 159 | . . . . . . . . . . . . 14 26 159 159 Total Orders 2 | . . . . . . . . . . . . 2 . . . AID 2 | . . . . . . . . . . . . 2 . . . Ally Attacks 63 | . . . . . . . . . . . . . . 52 11 Total Damage 1819 | . . . . . . . . . . . . . . 1482 337 Kills 15 | . . . . . . . . . . . . . . 13 2 Allies Corrupted 1 | . . . . . . . . . . . . . . 1 . Allies Melted 1 | . . . . . . . . . . . . . . 1 . Intel | -11 -10 -10 -10 -9 -8 -8 -8 -7 -7 -7 -7 -6 -5 -5 -5 ------- Run | Scr Mat Min Exi Min Mat Gar Mat Fac Gar Fac Gar Fac Fac Ext Cet Robot Analysis Total 1 | . . . . . . . . . . . . . 1 . . Derelict Logs Recovered 3 | . . 1 . 2 . . . . . . . . . . . Drone Launches . | . . . . . . . . . . . . . . . . Drone Recoveries . | . . . . . . . . . . . . . . . . Exploration | -11 -10 -10 -10 -9 -8 -8 -8 -7 -7 -7 -7 -6 -5 -5 -5 ------------- Run | Scr Mat Min Exi Min Mat Gar Mat Fac Gar Fac Gar Fac Fac Ext Cet Turns Passed 7963 | 150 873 569 848 804 101 1304 655 229 550 163 221 478 129 413 476 Spaces Moved 4887 | 68 346 228 353 333 43 425 464 426 253 291 353 506 277 384 137 Core 14 | 1 . . . . . 4 . . . . . . . . 9 Treads 1582 | 67 346 228 353 333 43 110 . . . . . . . . 102 Legs . | . . . . . . . . . . . . . . . . Wheels . | . . . . . . . . . . . . . . . . Hover . | . . . . . . . . . . . . . . . . Flight 3291 | . . . . . . 311 464 426 253 291 353 506 277 384 26 Fastest Speed 29 | 50 160 240 240 240 160 50 50 35 35 35 34 29 34 34 34 Average Speed 99 | 158 189 240 240 240 163 86 65 39 35 35 34 37 34 35 191 Slowest Speed 1350 | 160 240 240 240 240 240 800 150 50 35 35 35 129 120 120 1350 Overloaded Moves 4 | . . . . . . . . . . . . 4 . . . Propulsion Burnouts . | . . . . . . . . . . . . . . . . Robots Hopped 21 | . . . . . . 1 6 2 3 1 5 1 . 2 . Cave-ins Triggered . | . . . . . . . . . . . . . . . . Exploration Rate (%) 39 | 5 66 40 70 85 5 55 40 17 51 7 53 14 9 55 54 Regions Visited 15 Branch Regions 5 Pre-discovered Areas 1 | . . . 1 . . . . . . . . . . . . Known Exits Taken 6 | . 1 . . . 1 . 1 1 . 1 . . 1 . . Unknown Exits Taken 6 | 1 . 1 1 1 . . . . . . . 1 . 1 . Scrap Searched 3 | . . 1 . 2 . . . . . . . . . . . Spaces Dug 10 | . . . . . 7 . . . . . . 3 . . . Terrain Destroyed 393 | . . 87 . . 67 20 . . 30 . . 3 . 114 72 Melee 3 | . . . . . . . . . . . . 3 . . . Projectile 10 | . . . . . . . . . . . . . . . 10 AOE 380 | . . 87 . . 67 20 . . 30 . . . . 114 62 Terrain Rammed . | . . . . . . . . . . . . . . . . Walls Destroyed . | . . . . . . . . . . . . . . . . Machines Disabled . | . . . . . . . . . . . . . . . . Actions | -11 -10 -10 -10 -9 -8 -8 -8 -7 -7 -7 -7 -6 -5 -5 -5 --------- Run | Scr Mat Min Exi Min Mat Gar Mat Fac Gar Fac Gar Fac Fac Ext Cet Total 7527 | 89 444 236 355 340 57 1283 797 481 700 342 433 753 310 637 270 Wait 2066 | . 13 . . . . 747 314 41 417 32 58 204 25 171 44 Move 4837 | 67 345 227 352 332 43 422 452 422 247 289 342 504 276 380 137 Hop 18 | . . . . . . 1 5 2 2 1 5 1 . 1 . Pick Up 58 | 6 6 1 3 4 3 10 6 3 1 4 . 6 1 1 3 Fast Attach 37 | 7 2 . . . . 2 . 5 . . . 6 3 1 11 Attach 32 | . 2 . . . 3 6 2 2 4 2 5 . 1 1 4 Detach 9 | . . . . . . 2 . . . . 2 1 2 2 . Swap 32 | . 4 . . 1 . 1 4 . 6 5 5 1 . 2 3 Drop 47 | . 4 . . 3 . 6 5 5 1 3 3 9 2 2 4 Fire 200 | 9 66 6 . . 8 39 5 . 6 . . . . 6 55 Melee 63 | . . . . . . 8 4 1 1 4 6 21 . 9 9 Ram . | . . . . . . . . . . . . . . . . Kick . | . . . . . . . . . . . . . . . . Crush 7 | . 2 2 . . . 3 . . . . . . . . . Escape Stasis 74 | . . . . . . 36 . . 15 . 5 . . 18 . Rewire 43 | . . . . . . . . . . . . . . 43 . Trap 4 | . . . . . . . . . . 2 2 . . . . Miscellaneous . | . . . . . . . . . . . . . . . . Route ------- -11/Scrapyard -10/Materials (discovered 2 exits: [*Mat] / *Min) -10/Mines (discovered 2 exits: [*Mat] / *Exi) -10/Exiles -9/Mines (discovered 2 exits: *Mat x2) -8/Materials (discovered 3 exits: Fac x2 / Gar) -8/Garrison -8/Materials (discovered 3 exits: *Fac x3) -7/Factory -7/Garrison (discovered 2 exits: *Fac x2) -7/Factory -7/Garrison (discovered 3 exits: *Fac x3) -6/Factory (discovered 2 exits: *Fac / [*Low]) -5/Factory (discovered 4 exits: Upp x2 / *Ext x2) -5/Extension (discovered 2 exits: [*Fac] / [*Cet]) -5/Cetus (discovered 1 exit: [*Arc]) History --------- Turn | Location | Event 7 | -11/Scrapyard | Discovered new exit (range 15) 151 | -11/Scrapyard | Entered Materials 256 | -10/Materials | Identified exit to Mines 308 | -10/Materials | Build established: Mutant 443 | -10/Materials | Discovered new exit (range 10) 1024 | -10/Materials | Entered Mines 1128 | -10/Mines | A weapon hastily lodged in a ceiling crevice suddenly fell to the ground 1227 | -10/Mines | Learned 4 Materials zone layouts 1402 | -10/Mines | Discovered new exit (range 14) 1504 | -10/Mines | Discovered new exit (range 9) 1576 | -10/Mines | Deemed a non-threat by the Exiles lab entrance 1593 | -10/Mines | Entered Exiles 1653 | -10/Exiles | Met 8R-AWN 1694 | -10/Exiles | Met EX-HEX 1805 | -10/Exiles | Met EX-DEC 1848 | -10/Exiles | Learned location of Zion (-6) 2037 | -10/Exiles | Met EX-BIN 2073 | -10/Exiles | Aligned with FarCom system 2076 | -10/Exiles | Given EX-Vault access code 2136 | -10/Exiles | Opened EX-Vault 2153 | -10/Exiles | Found XL Autogun Array 2156 | -10/Exiles | Found Flying Fortress v7 2164 | -10/Exiles | Found Trap Reconfigurator 2211 | -10/Exiles | Warned to stay clear of 0b10 Research branches 2412 | -10/Exiles | Discovered new exit (range 14) 2441 | -10/Exiles | Stole three prototypes: Flying Fortress v7, Trap Reconfigurator, XL Autogun Array 2441 | -10/Exiles | Entered Mines 2473 | -9/Mines | Discovered new exit (range 8) 2811 | -9/Mines | Met a Derelict who couldn't figure out how to use a Trap Extractor 2900 | -9/Mines | Learned 2 Materials zone layouts 3015 | -9/Mines | Discovered new exit (range 16) 3152 | -9/Mines | Learned location of 2 exits from Materials 3245 | -9/Mines | Entered Materials 3245 | -8/Materials | Evolved 4 slots: Propulsion x2, Utility x2 3246 | -8/Materials | Identified exit to Factory 3289 | -8/Materials | Garrison activated, responded to threat 3346 | -8/Materials | Identified exit to Garrison 3346 | -8/Materials | Entered Garrison 3738 | -8/Garrison | Triggered checkpoint 3801 | -8/Garrison | Garrison Relay disabled 4152 | -8/Garrison | Triggered checkpoint 4224 | -8/Garrison | Triggered checkpoint 4354 | -8/Garrison | Lost 8 parts (1p4n3w) 4437 | -8/Garrison | Spotted B-75 Beast 4598 | -8/Garrison | Garrison Relay disabled 4626 | -8/Garrison | Triggered checkpoint 4638 | -8/Garrison | Discovered new exit (range 15) 4648 | -8/Garrison | Installed Relay Interface Framework 4650 | -8/Garrison | Entered Materials 5305 | -8/Materials | Entered Factory 5305 | -7/Factory | Evolved 2 slots: Propulsion x2 5307 | -7/Factory | FarCom data flow suspended 5534 | -7/Factory | Identified exit to Garrison 5534 | -7/Factory | Entered Garrison 5976 | -7/Garrison | Triggered checkpoint 5978 | -7/Garrison | Garrison Relay disabled 6002 | -7/Garrison | Triggered checkpoint 6017 | -7/Garrison | Discovered new exit (range 10) 6075 | -7/Garrison | Discovered new exit (range 8) 6079 | -7/Garrison | Expanded RIF knowledge: Coupler Efficiency 6084 | -7/Garrison | Entered Factory 6095 | -7/Factory | Lost 6 parts (1p1n2u2w) 6239 | -7/Factory | Fabricated Imp. Propulsion Shielding (x2) 6247 | -7/Factory | Identified exit to Garrison 6247 | -7/Factory | Entered Garrison 6304 | -7/Garrison | Triggered checkpoint 6362 | -7/Garrison | Triggered checkpoint 6366 | -7/Garrison | Discovered new exit (range 12) 6422 | -7/Garrison | Discovered new exit (range 14) 6438 | -7/Garrison | Core integrity fell below 50% 6447 | -7/Garrison | Triggered checkpoint 6448 | -7/Garrison | Triggered checkpoint 6462 | -7/Garrison | Discovered new exit (range 11) 6467 | -7/Garrison | Expanded RIF knowledge: Program Shield 6468 | -7/Garrison | Entered Factory 6468 | -6/Factory | Evolved 2 slots: Utility x2 6554 | -6/Factory | Fabricated M-13 Machinist (x1) 6643 | -6/Factory | Discovered new exit (range 9) 6725 | -6/Factory | Spotted B-75 Beast 6813 | -6/Factory | Repaired Mic. Nuclear Core 6944 | -6/Factory | Discovered new exit (range 5) 6946 | -6/Factory | Entered another Factory area 6946 | -5/Factory | Evolved 2 slots: Propulsion x2 7037 | -5/Factory | Identified exit to Upper Caves 7037 | -5/Factory | Identified exit to Extension 7075 | -5/Factory | Entered Extension 7075 | -5/Extension | Accompanied by 1 ally 7093 | -5/Extension | Rescued A7 7119 | -5/Extension | Rescued a captive Derelict 7162 | -5/Extension | Rescued a captive Derelict 7375 | -5/Extension | First assault squad dispatched 7407 | -5/Extension | Rescued a captive Derelict 7412 | -5/Extension | Rescued a captive Derelict 7450 | -5/Extension | Rescued a captive Derelict 7473 | -5/Extension | Discovered new exit (range 10) 7473 | -5/Extension | Discovered new exit (range 6) 7488 | -5/Extension | Entered Cetus 7488 | -5/Cetus | Accompanied by 1 ally (A7) 7493 | -5/Cetus | Acquired a Cetus Manufacturing Module code from A7 7503 | -5/Cetus | Spotted Cetus Guard 7504 | -5/Cetus | Spotted Cetus Guard 7504 | -5/Cetus | Spotted Cetus Guard 7518 | -5/Cetus | Spotted Cetus Guard 7536 | -5/Cetus | Allies destroyed Cetus Guard 7599 | -5/Cetus | System corruption reached 10% 7607 | -5/Cetus | Core integrity fell below 50% 7608 | -5/Cetus | Destroyed Cetus Guard 7629 | -5/Cetus | Lost 10 parts (1p4n3u2w) 7793 | -5/Cetus | Cetus Manufacturing Module disabled 7889 | -5/Cetus | Discovered new exit (range 15) 7921 | -5/Cetus | Spotted Cetus Guard 7921 | -5/Cetus | Spotted Cetus Guard 7933 | -5/Cetus | Spotted Cetus Guard 7946 | -5/Cetus | Core integrity fell below 20% 7950 | -5/Cetus | Destroyed Cetus Guard 7957 | -5/Cetus | Spotted Cetus Guard 7964 | -5/Cetus | Destroyed by Cetus Guard with Improved KE Penetrator Last Messages --------------- 07950_ Slug penetrates Cetus Guard. 07950_ Cetus Guard suffers critical hit (Destroy). 07950_ Cetus Guard destroyed. 07951_ Penetrated by Slug. 07952_ Slug penetrates Cetus Guard. 07952_ Cetus Guard suffers critical hit (Destroy). 07952_ Destroyed Quantum Reactor. 07952_ W-25 Informer suffers critical hit (Destroy). 07952_ Destroyed Lgt. Deuterium Engine. 07954_ Penetrated by Slug. 07955_ Slug penetrates Wall. 07955_ Slug penetrates Cetus Guard. 07955_ W-25 Informer destroyed. 07958_ Slug penetrates Cetus Guard. 07958_ Penetrated by Slug. 07961_ System corrupted: Energy discharge (-3). 07963_ Slug penetrates Wall. 07964_ Penetrated by Slug. 07964_ Imp. KE Penetrator destroyed. 07964_ Penetrated by Slug. Map ----- +----------------------------------------------------+ | ?????????????????????????????????????????? | | ?????????????????????????????????????????? | | ?????????????????????????????????????????? | | ?????????????????????????????????????????? | | ?????????????????????????????????????????? | | ?????????????????????????????????????????? | | ?????????????????????????????????????????? | | ?????????????????????????????????????????? | | ?????????????????????????????????????????? | | ?????????????????????????????????????????? | | ????????????????????????!%!??????????????? | | ???????????????????????? ??????????????? | | ????????????????????????* ??????????????? | | ???????????????????????#Y! #?????????????? | | ???????????????????????;[YY;?????????????? | | ???????????????????????# ;?????????????? | | ???????????????????????# #?????????????? | | ???????????????????????# #?????????????? | | ???????????????????????# #?????????????? | | ??????????????????????## #?????????????? | | ???????????????????????; #?????????????? | | ???????????????????????; #?????????????? | | ???????????????????????# #?????????????? | | ??????????????????????## #?????????????? | | ??????????????????????#; #?????????????? | | ??????????????????????#; @ #?????????????? | | ??????????????????????## #?????????????? | | ???????????????????????# #?????????????? | | ???????????????????????# #?????????????? | | ???????????????????????# #?????????????? | | ???????????????????????# #?????????????? | | ???????????????????????# #?????????????? | | ""????#????????????????# #?????????????? | | " ???#"????????????????# #?????????????? | | """""#"######??????????# #?????????????? | | """""#""""""#??????????# #?????????????? | | """""#" ""#??????????# #?????????????? | | """# ""#??????????# #?????????????? | | """ #" ###????????# #?????????????? | | # ########## ###########???? | | [ /[ #???? | | [ % < #???? | | = #???? | | # ########################???? | | """"""# # #??????????????????????????? | | #########"""###??????????????????????????? | | ?????????????????????????????????????????? | | ?????????????????????????????????????????? | | ?????????????????????????????????????????? | | ?????????????????????????????????????????? | +----------------------------------------------------+ Best States ------------- Heat Dissipation 40 Coolant Potential 50 Energy Generation 25 Energy Capacity 350 Matter Stores 300 Matter Capacity 300 Sight Range 16 Terrain Scan Range 16 Terrain Scan Density 10 Additional Mass Support 16 Armor Coverage 450 Core Shielding 20 Propulsion Shielding 66 Weapon Cycling 15 Phase Shifting 10 Evasion (%) 63 Melee Accuracy 16 Recoil Reduction 3 Offensive Hacking 10 Item Schematics ----------------- Imp. Propulsion Shielding | -8/Materials | Scanalyzed Imp. Trap Extractor | -8/Materials | Scanalyzed Datajack | -8/Materials | Scanalyzed Imp. Sensor Array | -8/Materials | Scanalyzed Grenade Launcher | -8/Materials | Scanalyzed Huge Storage Unit | -8/Materials | Scanalyzed Lrg. Matter Pod | -8/Materials | Scanalyzed Trap Scanner | -8/Materials | Scanalyzed Imp. Remote Datajack | -5/Factory | Hacked Robot Schematics ------------------ M-13 Machinist | -10/Materials | Hacked O-16 Technician | -10/Materials | Hacked Y-64 Sentinel | -5/Factory | Hacked Fabricated ------------ Imp. Propulsion Shielding | x2 | -7/Factory M-13 Machinist | x1 | -6/Factory Alien Tech Used ----------------- None Achievements -------------- None Challenges ------------ None Game ------ Seed HelicalMeleeReactor Manual? 0 Play Time 01:17:05 Cumulative 435.9 hours Start 2021.11.25 @ 19:57:48 End 2021.11.25 @ 21:23:47 Sessions 1 Manual Loads 0 Difficulty Rogue Special Mode None Game No. 416 Rogue 201 Adventurer 112 Explorer 103 Win Type - Total 30 Types 21/0/5/2/1/0/0/1/0 Lore% 85 Gallery% 90 Achievement% 80 Wizard Run 0 Options --------- ASCII 0 Keyboard 0 Movement Numpad Keybinds 0 Fullscreen 2 Font 18/TerminusBold Map View 76x50 Tactical HUD 1 Map Filters NONE Filters NONE Steam 1 RUN: 2df400da-ec41-4166-949f-fe0b9c6f68ef